bitfinex/quotes_BTCUSD_20240617
["timestamp","ask_amount","ask_price","bid_price","bid_amount"]
[1718590565450,0.07330501,66442.0,66441.0,1.44072692]
[1718590565651,0.07330501,66442.0,66441.0,1.50316837]
[1718590565990,0.00940501,66442.0,66441.0,1.50316837]
[1718590566391,0.00940501,66442.0,66441.0,1.51716837]
[1718590566599,0.00940501,66442.0,66441.0,1.50316837]
[1718590566766,0.0854489,66442.0,66441.0,1.51716837]
[1718590567169,0.0854489,66442.0,66441.0,1.51716804]
[1718590568182,0.25317319,66442.0,66441.0,0.32797852]
[1718590568383,0.36339015,66442.0,66441.0,0.32797852]
[1718590568593,0.36756917,66442.0,66441.0,0.20308779]
[1718590569409,0.36756917,66442.0,66441.0,0.18908779]
[1718590569613,0.36756917,66442.0,66441.0,0.41868957]
[1718590569811,0.36756917,66442.0,66441.0,0.46898957]
[1718590570467,0.36756917,66442.0,66441.0,0.48298957]
[1718590572338,0.36756917,66442.0,66441.0,0.60788112]
[1718590572535,0.36756917,66442.0,66441.0,0.48298957]
[1718590572689,0.36756917,66442.0,66441.0,0.60788134]
[1718590573094,0.36756917,66442.0,66441.0,0.48298957]
[1718590573295,0.36756917,66442.0,66441.0,0.6078813]
[1718590573686,0.36756917,66442.0,66441.0,0.48298957]
[1718590573888,0.36756917,66442.0,66441.0,0.5011766]
[1718590574090,0.36756917,66442.0,66441.0,0.62606887]
[1718590574662,0.53807617,66442.0,66441.0,0.051]
[1718590574880,0.53807617,66442.0,66441.0,0.028]
[1718590574881,1.49141817,66442.0,66441.0,0.028]
[1718590575307,1.59141817,66442.0,66441.0,0.028]
[1718590575950,1.89243217,66442.0,66441.0,0.014]
[1718590576146,1.89243217,66442.0,66441.0,0.028]
[1718590576147,2.04451996,66442.0,66441.0,0.028]
[1718590576352,2.04451996,66442.0,66413.0,0.000935]
[1718590576353,0.08852429,66414.0,66413.0,0.000935]
[1718590576512,0.08852429,66414.0,66413.0,0.49100372]
[1718590576513,0.1364,66414.0,66413.0,0.49100372]
[1718590576712,0.08852429,66414.0,66413.0,0.49100372]
[1718590576913,0.09135145,66414.0,66413.0,0.84895718]
[1718590577117,0.24192145,66414.0,66413.0,0.33477054]
[1718590577321,0.24192145,66414.0,66413.0,0.29589696]
[1718590577526,0.75927941,66414.0,66413.0,0.014935]
[1718590577727,1.06042041,66414.0,66413.0,0.014935]
[1718590577926,1.36156141,66414.0,66413.0,0.000935]
[1718590578091,1.36156141,66414.0,66413.0,0.013935]
[1718590578293,1.78850241,66414.0,66413.0,0.013935]
[1718590578520,1.36156141,66414.0,66413.0,0.000935]
[1718590579177,1.36256141,66414.0,66413.0,0.014935]
[1718590579375,1.3635622,66414.0,66413.0,0.014935]
[1718590579824,1.3625622,66414.0,66413.0,0.000935]
[1718590580015,0.2885692,66414.0,66413.0,0.000935]
[1718590580279,0.2895692,66414.0,66413.0,0.010935]
[1718590580496,0.2885692,66414.0,66413.0,0.151507]
[1718590580617,0.2885692,66414.0,66413.0,0.0390857]
[1718590580825,0.01482795,66414.0,66413.0,0.64389049]
[1718590581032,0.00982795,66414.0,66413.0,0.94503549]
[1718590581243,0.00882716,66414.0,66413.0,0.94503549]
[1718590581452,0.006,66414.0,66413.0,0.94603549]
[1718590582019,0.006,66414.0,66413.0,0.94503549]
[1718590582202,0.08607799,66414.0,66413.0,0.62773979]
[1718590582411,0.08607799,66421.0,66420.0,0.451671]
[1718590582560,0.04951696,66421.0,66420.0,0.32564479]
[1718590582764,0.05231602,66421.0,66420.0,0.32564479]
[1718590582985,0.2925814,66421.0,66420.0,0.17508779]
[1718590583992,0.1460274,66421.0,66420.0,0.32564479]
[1718590584374,0.14804125,66421.0,66420.0,0.32664479]
[1718590584573,0.14804125,66421.0,66420.0,0.17608779]
[1718590584890,0.15071238,66421.0,66420.0,0.17608779]
[1718590585291,0.14671238,66421.0,66420.0,0.17608779]
[1718590585690,0.14071238,66421.0,66420.0,0.17508779]
[1718590585872,0.14071238,66421.0,66420.0,0.17808779]
[1718590586273,0.66841927,66421.0,66420.0,0.026]
[1718590586479,0.81070334,66421.0,66420.0,0.026]
[1718590586696,0.27051605,66421.0,66420.0,0.03]
[1718590586897,0.05337216,66421.0,66420.0,0.63375879]
[1718590587098,0.05337216,66421.0,66420.0,0.72424707]
[1718590587099,0.13945015,66421.0,66420.0,0.72424707]
[1718590587305,0.13804125,66421.0,66420.0,0.72424707]
[1718590587611,0.13804125,66421.0,66420.0,0.93087279]
[1718590587612,0.04951696,66421.0,66420.0,0.93087279]
[1718590587843,0.04951696,66421.0,66420.0,0.93487279]
[1718590588204,0.08607799,66423.0,66420.0,0.93487279]
[1718590588205,0.04951696,66423.0,66422.0,0.451657]
[1718590588402,0.04951696,66423.0,66422.0,0.60374479]
[1718590588724,0.13804125,66423.0,66422.0,0.32563979]
[1718590589052,0.14070187,66423.0,66422.0,0.32563979]
[1718590590186,0.141892,66423.0,66422.0,0.32663979]
[1718590590392,0.1394457,66423.0,66422.0,0.92884979]
[1718590590801,0.13804125,66423.0,66422.0,0.32663979]
[1718590591329,0.14069587,66423.0,66422.0,0.32663979]
[1718590595774,0.14069587,66423.0,66422.0,0.32657157]
[1718590598387,0.05217158,66423.0,66422.0,0.92878157]
[1718590598532,0.00265462,66423.0,66422.0,0.92878157]
[1718590598762,0.13559495,66424.0,66423.0,0.75275]
[1718590598934,0.13804125,66424.0,66423.0,0.92783779]
[1718590599571,0.13559495,66424.0,66423.0,0.92783779]
[1718590599785,0.13804125,66424.0,66423.0,0.92783779]
[1718590599987,0.14169076,66424.0,66423.0,0.92783779]
[1718590600422,0.14169076,66424.0,66423.0,0.62673779]
[1718590603636,0.05316647,66424.0,66423.0,0.92783779]
[1718590604241,0.05316647,66424.0,66423.0,1.05276692]
[1718590604648,0.05051696,66424.0,66423.0,1.05276692]
[1718590605296,0.05051696,66424.0,66423.0,1.11523019]
[1718590605495,0.08707799,66424.0,66423.0,1.01824048]
[1718590605865,0.08707799,66424.0,66423.0,1.31934048]
[1718590606096,0.001,66424.0,66423.0,1.31934048]
[1718590606708,0.00365932,66424.0,66423.0,1.31934048]
[1718590606911,0.00081885,66424.0,66423.0,1.31934048]
[1718590608889,0.08689684,66424.0,66423.0,1.31934048]
[1718590609495,0.00081885,66424.0,66423.0,1.31934048]
[1718590611588,0.1388601,66424.0,66423.0,1.17793019]
[1718590612205,0.1388601,66424.0,66423.0,1.11523019]
[1718590612433,0.1364138,66424.0,66423.0,1.11523019]
[1718590613056,0.1388601,66424.0,66423.0,1.11523019]
[1718590621035,0.1388601,66424.0,66423.0,0.81413019]
[1718590621966,0.1388601,66424.0,66423.0,0.36248019]
[1718590622166,0.2826226,66424.0,66423.0,0.36248019]
[1718590622578,0.2826226,66424.0,66423.0,0.30001692]
[1718590622781,0.4331696,66424.0,66423.0,0.12492913]
[1718590622986,0.4331696,66424.0,66418.0,0.12492913]
[1718590622987,0.28860025,66419.0,66418.0,0.12492913]
[1718590623189,0.28860025,66419.0,66413.0,0.04601109]
[1718590623190,0.04951696,66414.0,66413.0,0.000935]
[1718590623428,0.08852429,66417.0,66416.0,0.451698]
[1718590623651,0.08852429,66417.0,66416.0,0.72873063]
[1718590623906,0.08607799,66418.0,66417.0,0.150563]
[1718590624132,0.0659,66423.0,66417.0,0.150563]
[1718590624133,0.04951696,66423.0,66417.0,0.32732736]
[1718590624380,0.1388601,66424.0,66423.0,0.45165]
[1718590624586,0.13804125,66424.0,66423.0,0.75166962]
[1718590624804,0.14069746,66424.0,66423.0,0.75166962]
[1718590625441,0.13825116,66424.0,66423.0,0.77919537]
[1718590625890,0.13925116,66424.0,66423.0,0.77919537]
[1718590626090,0.14169746,66424.0,66423.0,0.77919537]
[1718590626504,0.13904125,66424.0,66423.0,0.75166962]
[1718590627330,0.13904125,66424.0,66423.0,0.75166879]
[1718590628149,0.13904125,66424.0,66423.0,0.30001879]
[1718590628359,0.28958825,66424.0,66423.0,0.30001879]
[1718590628558,0.13904125,66424.0,66423.0,0.30001879]
[1718590628771,0.14169454,66424.0,66423.0,0.30001879]
[1718590630023,0.14169454,66424.0,66423.0,0.45056879]
[1718590631535,0.14169454,66424.0,66423.0,0.30001879]
[1718590632214,0.14169454,66424.0,66423.0,0.31828268]
[1718590632433,0.29224154,66424.0,66423.0,0.16619489]
[1718590632653,0.29224154,66424.0,66416.0,0.04512372]
[1718590632654,0.13804125,66417.0,66416.0,0.04512372]
[1718590632862,0.13804125,66417.0,66416.0,0.42759231]
[1718590633067,0.14072085,66417.0,66416.0,0.42759231]
[1718590633303,0.13804125,66417.0,66416.0,0.42759231]
[1718590633513,0.14072085,66417.0,66416.0,0.42759231]
[1718590633717,0.08875759,66417.0,66416.0,0.85426757]
[1718590633933,0.0026796,66417.0,66416.0,1.15539957]
[1718590634133,0.13804125,66419.0,66418.0,0.451684]
[1718590634340,0.13804125,66419.0,66418.0,0.29849952]
[1718590634553,0.14071453,66419.0,66418.0,0.14793852]
[1718590635380,0.09119757,66419.0,66418.0,0.59962252]
[1718590635582,0.14071453,66419.0,66418.0,0.29849952]
[1718590636562,0.14171453,66419.0,66418.0,0.60562252]
[1718590636762,0.14171453,66419.0,66418.0,0.61062252]
[1718590637282,0.09219757,66419.0,66418.0,0.61062252]
[1718590637486,0.09219757,66419.0,66418.0,0.30949952]
[1718590638646,0.09219757,66419.0,66418.0,0.43336016]
[1718590639041,0.14171453,66419.0,66418.0,0.15893852]
[1718590639447,0.13926823,66419.0,66418.0,0.15893852]
[1718590639653,0.13926823,66419.0,66418.0,0.30949952]
[1718590639857,0.14171453,66419.0,66418.0,0.30949952]
[1718590640474,0.14171453,66419.0,66418.0,0.15893852]
[1718590642093,0.14171453,66419.0,66418.0,0.034]
[1718590642256,0.14171453,66419.0,66418.0,0.30950312]
[1718590647291,0.13926823,66419.0,66418.0,0.30950312]
[1718590647500,0.13904125,66419.0,66418.0,0.30950312]
[1718590647701,0.13904125,66419.0,66418.0,0.61062612]
[1718590647978,0.14169189,66419.0,66418.0,0.61062612]
[1718590649219,0.00365064,66419.0,66418.0,1.47260402]
[1718590649470,0.00365064,66419.0,66418.0,1.77728523]
[1718590649615,0.001,66419.0,66418.0,1.82327311]
[1718590649819,0.001,66419.0,66418.0,1.82628781]
[1718590649995,0.001,66419.0,66418.0,2.24022959]
[1718590650406,0.001,66419.0,66418.0,2.29483354]
[1718590650624,0.001,66419.0,66418.0,2.29531658]
[1718590650843,0.001,66419.0,66418.0,2.23901658]
[1718590651047,0.08607799,66431.0,66430.0,0.594902]
[1718590651249,0.08607799,66431.0,66430.0,1.33765378]
[1718590651438,0.08869625,66431.0,66430.0,1.33765378]
[1718590651597,0.08607799,66431.0,66430.0,1.33765378]
[1718590653088,0.08607799,66433.0,66432.0,0.752647]
[1718590653300,0.08607799,66433.0,66432.0,1.05267691]
[1718590653515,0.08607799,66433.0,66432.0,1.18873999]
[1718590653772,0.213205,66443.0,66438.0,0.150516]
[1718590653773,0.04951696,66439.0,66438.0,0.150516]
[1718590653975,0.00940501,66442.0,66440.0,0.593534]
[1718590654257,0.08692799,66441.0,66440.0,1.27823446]
[1718590654471,0.08692799,66441.0,66440.0,1.32853446]
[1718590654684,0.08692799,66441.0,66440.0,1.27823446]
[1718590654893,0.08937429,66441.0,66440.0,1.02751146]
[1718590655101,0.00085,66441.0,66440.0,1.32853446]
[1718590655311,0.08692799,66441.0,66440.0,1.32853446]
[1718590655519,0.08692799,66441.0,66440.0,1.02751146]
[1718590655946,0.08692799,66441.0,66440.0,1.03251146]
[1718590656365,0.08692799,66441.0,66440.0,0.90756934]
[1718590656610,0.00085,66441.0,66440.0,1.63450596]
[1718590657021,0.00085,66441.0,66440.0,1.33948296]
[1718590657467,0.00085,66441.0,66440.0,1.64050596]
[1718590657675,0.00085,66441.0,66440.0,1.33948296]
[1718590657891,0.00085,66441.0,66440.0,1.64050596]
[1718590658479,0.00085,66441.0,66440.0,1.33948296]
[1718590658913,0.00085,66441.0,66440.0,1.65805966]
[1718590659138,0.00085,66441.0,66440.0,1.64050596]
[1718590659558,0.00085,66441.0,66440.0,1.65805966]
[1718590660003,0.00085,66441.0,66440.0,2.05908266]
[1718590660224,0.00085,66441.0,66440.0,1.75805966]
[1718590660712,0.00085,66441.0,66440.0,1.69020596]
[1718590660996,0.00085,66441.0,66440.0,1.74050596]
[1718590661218,0.00085,66441.0,66440.0,1.73550596]
[1718590661427,0.00085,66441.0,66440.0,1.76105966]
[1718590661623,0.00085,66441.0,66440.0,1.77505966]
[1718590662024,0.00085,66441.0,66440.0,1.74705966]
[1718590662230,0.00085,66441.0,66440.0,1.77505966]
[1718590663572,0.00085,66441.0,66440.0,1.02151241]
[1718590663679,0.00085,66441.0,66440.0,0.62878941]
[1718590663888,0.00085,66441.0,66440.0,1.10594479]
[1718590664092,0.09184815,66441.0,66440.0,1.10594479]
[1718590664290,0.08940185,66441.0,66440.0,1.10594479]
[1718590665807,0.09184815,66441.0,66440.0,0.30308779]
[1718590666045,0.09184815,66441.0,66440.0,0.22084522]
[1718590666046,0.29187411,66441.0,66440.0,0.22084522]
[1718590666264,0.14136511,66441.0,66440.0,0.22084522]
[1718590666488,0.28996511,66441.0,66440.0,0.22084522]
[1718590666711,1.06251011,66441.0,66440.0,0.06875743]
[1718590667151,1.06251011,66441.0,66440.0,0.051]
[1718590667599,1.06251011,66441.0,66440.0,0.037]
[1718590667822,1.06251011,66441.0,66440.0,0.023]
[1718590668033,1.06251011,66441.0,66440.0,0.032]
[1718590668239,0.76149211,66441.0,66440.0,0.032]
[1718590668592,0.76149211,66441.0,66440.0,0.042]
[1718590669869,1.06251011,66441.0,66440.0,0.042]
[1718590670862,1.36352811,66441.0,66440.0,0.019]
[1718590678176,1.34352811,66441.0,66440.0,0.019]
[1718590678600,1.36352811,66441.0,66440.0,0.019]
[1718590684474,1.41382811,66441.0,66440.0,0.019]
[1718590687036,1.71484611,66441.0,66440.0,0.019]
[1718590687256,1.41382811,66441.0,66440.0,0.019]
[1718590687909,1.41382811,66441.0,66440.0,0.009]
[1718590688123,0.4540343,66432.0,66431.0,0.0181953]
[1718590688354,0.54011229,66432.0,66431.0,0.19328309]
[1718590688572,0.54260101,66432.0,66431.0,0.17508779]
[1718590689384,0.54260101,66432.0,66431.0,0.17908779]
[1718590690421,0.54260101,66432.0,66431.0,0.18208779]
[1718590691471,0.61211797,66432.0,66431.0,0.18208779]
[1718590692582,1.26453597,66432.0,66431.0,0.03]
[1718590692991,0.96347697,66432.0,66431.0,0.03]
[1718590694544,1.26453597,66432.0,66431.0,0.007]
[1718590694789,0.96347697,66432.0,66431.0,0.007]
[1718590695452,0.96347697,66432.0,66431.0,0.004]
[1718590695688,1.26453597,66432.0,66426.0,0.01813795]
[1718590695902,0.91074625,66427.0,66426.0,0.01813795]
[1718590696117,0.60967725,66425.0,66424.0,0.000935]
[1718590696334,0.60967725,66425.0,66424.0,0.12586841]
[1718590696550,0.61218245,66425.0,66424.0,0.14886841]
[1718590696983,0.59218245,66425.0,66424.0,0.14886841]
[1718590697208,0.29109145,66425.0,66424.0,0.3009562]
[1718590697430,0.29109145,66425.0,66424.0,0.75761511]
[1718590697431,0.0025052,66425.0,66424.0,0.75761511]
[1718590697651,0.0025052,66425.0,66424.0,1.42227052]
[1718590697869,0.0025052,66425.0,66424.0,1.12117552]
[1718590697870,0.08607799,66425.0,66424.0,1.12117552]
[1718590698285,0.08607799,66425.0,66424.0,1.12617552]
[1718590698491,0.08607799,66425.0,66424.0,1.08287552]
[1718590698672,0.08607799,66425.0,66424.0,1.12617552]
[1718590698944,0.08852429,66425.0,66424.0,1.0292099]
[1718590699149,0.08852429,66425.0,66424.0,1.0542099]
[1718590699582,0.08607799,66427.0,66426.0,0.1406]
[1718590699799,0.08607799,66427.0,66426.0,1.00501561]
[1718590700001,0.08852429,66427.0,66426.0,1.00501561]
[1718590700315,0.08852429,66427.0,66426.0,1.1099453]
[1718590700517,0.0910258,66427.0,66426.0,0.92254648]
[1718590700924,0.0910258,66427.0,66426.0,0.93154648]
[1718590701137,0.0910258,66427.0,66426.0,0.94254648]
[1718590701345,0.08852429,66427.0,66426.0,1.06746628]
[1718590702184,0.08852429,66427.0,66426.0,0.94254648]
[1718590702588,0.08852429,66427.0,66426.0,1.06746628]
[1718590703389,0.08852429,66427.0,66426.0,0.71608028]
[1718590703576,0.0910216,66427.0,66426.0,0.71608028]
[1718590704197,0.0910216,66427.0,66426.0,1.01716628]
[1718590704400,0.08852429,66427.0,66426.0,1.01716628]
[1718590709046,0.08852429,66427.0,66426.0,0.91223659]
[1718590709262,0.08852429,66427.0,66426.0,0.32000759]
[1718590709263,0.28858225,66427.0,66426.0,0.32000759]
[1718590709458,0.59216786,66427.0,66426.0,0.32000759]
[1718590709661,0.89324986,66427.0,66426.0,0.32000759]
[1718590709888,0.59216786,66427.0,66426.0,0.32000759]
[1718590710343,0.29108586,66427.0,66426.0,0.19508779]
[1718590710887,0.29108586,66427.0,66426.0,0.17508779]
[1718590711101,0.29108586,66427.0,66426.0,0.18408779]
[1718590711321,0.29232137,66427.0,66426.0,0.19508779]
[1718590711553,0.29232137,66427.0,66426.0,0.18408779]
[1718590711795,0.29232137,66427.0,66426.0,0.17508779]
[1718590711996,0.29232137,66427.0,66426.0,0.18008779]
[1718590712916,0.31232137,66427.0,66426.0,0.18008779]
[1718590713127,0.29232137,66427.0,66426.0,0.18008779]
[1718590714075,0.29232137,66427.0,66426.0,0.17808779]
[1718590714246,0.29232137,66427.0,66426.0,0.17708779]
[1718590714609,0.29232137,66427.0,66426.0,0.17908779]
[1718590714777,0.61340337,66427.0,66426.0,0.17508779]
[1718590715243,0.91448537,66427.0,66426.0,0.18008779]
[1718590715659,0.91448537,66427.0,66426.0,0.028]
[1718590715660,1.26586737,66427.0,66426.0,0.028]
[1718590716090,1.40846737,66427.0,66426.0,0.028]
[1718590716659,1.40846737,66427.0,66426.0,0.005]
[1718590716859,1.40846737,66427.0,66424.0,0.000935]
[1718590716860,0.7751733,66425.0,66424.0,0.000935]
[1718590717063,0.91076825,66425.0,66424.0,0.000935]
[1718590717267,0.91447271,66425.0,66424.0,0.000935]
[1718590718204,0.96477271,66425.0,66424.0,0.000935]
[1718590720169,0.91447271,66425.0,66424.0,0.000935]
[1718590720367,0.96477271,66425.0,66424.0,0.000935]
[1718590725197,2.30329138,66425.0,66424.0,0.000935]
[1718590725406,2.43023122,66425.0,66424.0,0.000935]
[1718590725612,2.75675337,66425.0,66424.0,0.000935]
[1718590726053,2.84678776,66425.0,66424.0,0.000935]
[1718590726520,2.49772603,66425.0,66424.0,0.000935]
[1718590727296,2.50172603,66425.0,66424.0,0.001935]
[1718590727470,2.43423122,66425.0,66424.0,0.000935]
[1718590727879,2.43823122,66425.0,66424.0,0.002935]
[1718590728119,2.38793122,66425.0,66424.0,0.002935]
[1718590728277,2.48320184,66425.0,66424.0,0.002935]
[1718590728915,2.47320184,66425.0,66424.0,0.002935]
[1718590729171,2.47329721,66425.0,66424.0,0.002935]
[1718590729289,2.42832659,66425.0,66424.0,0.002935]
[1718590729489,1.58499892,66425.0,66424.0,0.002935]
[1718590729707,1.63529892,66425.0,66424.0,0.002935]
[1718590730178,1.68529892,66425.0,66424.0,0.002935]
[1718590730431,1.68429892,66425.0,66424.0,0.001935]
[1718590730616,1.67829892,66425.0,66424.0,0.001935]
[1718590731031,1.68129892,66425.0,66424.0,0.002935]
[1718590732851,1.48099892,66425.0,66424.0,0.002935]
[1718590733080,1.40426371,66425.0,66424.0,0.002935]
[1718590733558,1.50426371,66425.0,66424.0,0.002935]
[1718590734649,1.53130595,66425.0,66424.0,0.002935]
[1718590734858,1.50426371,66425.0,66424.0,0.002935]
[1718590735274,1.52216506,66425.0,66424.0,0.002935]
[1718590735696,1.54920444,66425.0,66424.0,0.002935]
[1718590735911,1.52216506,66425.0,66424.0,0.002935]
[1718590736362,1.5492006,66425.0,66424.0,0.002935]
[1718590737076,1.52216506,66425.0,66424.0,0.002935]
[1718590737481,1.54919792,66425.0,66424.0,0.002935]
[1718590738098,1.54919793,66425.0,66424.0,0.002935]
[1718590738743,1.44919793,66425.0,66424.0,0.002935]
[1718590739145,1.50426371,66425.0,66424.0,0.002935]
[1718590739630,1.53129711,66425.0,66424.0,0.002935]
[1718590740251,0.28861325,66413.0,66412.0,0.14187]
[1718590740454,0.59975825,66413.0,66412.0,0.16487]
[1718590740878,0.60343128,66413.0,66412.0,0.16487]
[1718590741527,0.90457628,66413.0,66412.0,0.16487]
[1718590741739,0.90857628,66413.0,66412.0,0.16487]
[1718590742125,0.90957628,66413.0,66412.0,0.16487]
[1718590744625,0.90957628,66413.0,66412.0,0.023]
[1718590744840,0.90957628,66413.0,66404.0,0.01787072]
[1718590744841,0.28863225,66405.0,66404.0,0.01787072]
[1718590745063,0.28863225,66405.0,66404.0,0.19295851]
[1718590745064,0.13804125,66405.0,66404.0,0.19295851]
[1718590745286,0.13804125,66405.0,66404.0,0.17508779]
[1718590745492,0.13804125,66405.0,66404.0,0.23698779]
[1718590746320,0.13804125,66405.0,66404.0,0.24198779]
[1718590746940,0.13804125,66405.0,66404.0,0.24598779]
[1718590747494,0.13804125,66405.0,66404.0,0.24098779]
[1718590747752,0.28863225,66405.0,66404.0,0.23698779]
[1718590747990,0.28863225,66405.0,66404.0,0.24198779]
[1718590748194,0.28863225,66405.0,66404.0,0.24598779]
[1718590748361,0.28863225,66405.0,66404.0,0.24098779]
[1718590748581,0.28863225,66405.0,66404.0,0.24298779]
[1718590748719,0.58981425,66405.0,66404.0,0.24298779]
[1718590748909,0.58981425,66405.0,66404.0,0.24098779]
[1718590749313,0.58981425,66405.0,66404.0,0.24298779]
[1718590750006,0.28863225,66405.0,66404.0,0.23898779]
[1718590750222,0.28863225,66405.0,66404.0,0.23998779]
[1718590750424,0.28863225,66405.0,66404.0,0.36495784]
[1718590750664,0.43023225,66405.0,66404.0,0.12797005]
[1718590750879,1.49407825,66405.0,66404.0,0.001]
[1718590751080,1.34377825,66405.0,66404.0,0.003]
[1718590751295,1.42086731,66405.0,66404.0,0.001]
[1718590751516,1.54376937,66405.0,66404.0,0.001]
[1718590751732,1.34377825,66405.0,66404.0,0.003]
[1718590751937,1.25247825,66405.0,66404.0,0.001]
[1718590752155,0.89102825,66402.0,66401.0,0.00085]
[1718590752366,0.13804125,66402.0,66401.0,0.00085]
[1718590752592,0.28863825,66402.0,66401.0,0.02385]
[1718590752925,0.13804125,66402.0,66401.0,0.02385]
[1718590753139,0.28863825,66402.0,66401.0,0.02385]
[1718590753346,0.58983325,66402.0,66401.0,0.02385]
[1718590754530,0.13904125,66402.0,66401.0,0.17593779]
[1718590754708,0.08952429,66402.0,66401.0,0.47862558]
[1718590754985,0.08952429,66402.0,66401.0,0.45151486]
[1718590755191,0.13904125,66402.0,66401.0,0.30109605]
[1718590755604,0.13904125,66402.0,66401.0,0.30091486]
[1718590755605,0.13804125,66402.0,66401.0,0.30091486]
[1718590755856,0.13804125,66402.0,66401.0,0.30591486]
[1718590756501,0.28863825,66402.0,66401.0,0.30591486]
[1718590756712,0.28863825,66402.0,66401.0,0.18093779]
[1718590757157,0.28863825,66402.0,66401.0,0.17593779]
[1718590757590,0.28963825,66402.0,66401.0,0.18093779]
[1718590757755,0.28963825,66402.0,66401.0,0.17593779]
[1718590757955,0.28863825,66402.0,66401.0,0.17593779]
[1718590758189,0.28863825,66402.0,66401.0,0.17793779]
[1718590758395,0.28863825,66402.0,66401.0,0.17893779]
[1718590758396,0.59983325,66402.0,66401.0,0.17893779]
[1718590759774,0.28863825,66402.0,66401.0,0.17893779]
[1718590759949,0.28863825,66402.0,66401.0,0.00385]
[1718590759950,0.89102825,66402.0,66401.0,0.00385]
[1718590760160,0.28863825,66402.0,66401.0,0.00385]
[1718590760361,0.13804125,66402.0,66401.0,0.00385]
[1718590760774,0.13804125,66402.0,66401.0,0.00285]
[1718590760976,0.13804125,66402.0,66401.0,0.00085]
[1718590761293,0.14004125,66402.0,66401.0,0.00103119]
[1718590761450,0.14104125,66402.0,66401.0,0.38066608]
[1718590761653,0.13904125,66402.0,66401.0,0.23006608]
[1718590761882,0.28863825,66402.0,66401.0,0.17693779]
[1718590762316,0.28863825,66402.0,66401.0,0.17893779]
[1718590762716,0.13804125,66402.0,66401.0,0.17893779]
[1718590762940,0.13804125,66402.0,66401.0,0.00385]
[1718590763482,0.58983325,66402.0,66401.0,0.00385]
[1718590763697,0.58983325,66402.0,66401.0,0.00185]
[1718590763933,0.13804125,66402.0,66401.0,0.00385]
[1718590764211,0.04951696,66402.0,66401.0,0.30602558]
[1718590764447,0.13559495,66405.0,66404.0,0.451779]
[1718590764679,0.13559495,66405.0,66404.0,0.31706898]
[1718590764900,0.13804125,66405.0,66404.0,0.46897558]
[1718590765553,0.13559495,66405.0,66404.0,0.46897558]
[1718590765805,0.08852429,66405.0,66404.0,0.46897558]
[1718590766919,0.09052429,66405.0,66404.0,0.46897558]
[1718590767394,0.08807799,66405.0,66404.0,1.04590617]
[1718590767647,0.13759495,66405.0,66404.0,0.74472017]
[1718590767791,0.08807799,66405.0,66404.0,1.25748749]
[1718590767994,0.13759495,66405.0,66404.0,0.6549343]
[1718590768210,0.13559495,66405.0,66404.0,0.6549343]
[1718590768389,0.13804125,66405.0,66404.0,0.59563238]
[1718590768736,0.13804125,66405.0,66404.0,0.66211509]
[1718590768941,0.13804125,66405.0,66404.0,0.59663238]
[1718590769352,0.13804125,66405.0,66404.0,0.65911457]
[1718590769353,0.13904125,66405.0,66404.0,0.65911457]
[1718590769547,0.13904125,66405.0,66404.0,0.65911405]
[1718590769693,0.13659495,66405.0,66404.0,0.96030005]
[1718590769896,0.08707799,66405.0,66404.0,0.96030005]
[1718590770101,0.001,66405.0,66404.0,1.66946824]
[1718590770956,0.08607799,66410.0,66409.0,0.75308819]
[1718590771136,0.13804125,66412.0,66411.0,0.150577]
[1718590771343,0.13804125,66412.0,66411.0,0.15208779]
[1718590771706,0.13804125,66412.0,66411.0,0.32566479]
[1718590772950,0.13804125,66412.0,66411.0,0.32584598]
[1718590773363,0.13804125,66412.0,66411.0,0.32566479]
[1718590773569,0.14104125,66412.0,66411.0,0.32566479]
[1718590773938,0.14214228,66412.0,66411.0,0.32566479]
[1718590774367,0.14414228,66412.0,66411.0,0.32584598]
[1718590774704,0.14669913,66412.0,66411.0,0.32584598]
[1718590774906,0.14304125,66412.0,66411.0,0.32584598]
[1718590775936,0.14414228,66412.0,66411.0,0.32584598]
[1718590776434,0.14414228,66412.0,66411.0,0.32566479]
[1718590777039,0.14414228,66412.0,66411.0,0.17508779]
[1718590779507,0.13804125,66405.0,66404.0,0.00018119]
[1718590779651,0.28863225,66405.0,66404.0,0.15208779]
[1718590779855,0.28863225,66405.0,66404.0,0.17508779]
[1718590780056,0.28863225,66405.0,66404.0,0.17565872]
[1718590780515,0.13804125,66405.0,66404.0,0.17565872]
[1718590780662,0.28863225,66405.0,66404.0,0.17547753]
[1718590780865,0.58981425,66405.0,66404.0,0.18447753]
[1718590781338,0.13804125,66405.0,66404.0,0.18447753]
[1718590781716,0.13804125,66405.0,66404.0,0.17547753]
[1718590782117,0.13804125,66405.0,66404.0,0.18247753]
[1718590782326,0.13804125,66405.0,66404.0,0.17847753]
[1718590782533,0.13804125,66405.0,66404.0,0.17547753]
[1718590783354,0.58981425,66405.0,66404.0,0.17547753]
[1718590783892,0.14004125,66405.0,66404.0,0.17547753]
[1718590785073,0.14204125,66405.0,66404.0,0.17547753]
[1718590785326,0.14004125,66405.0,66404.0,0.17547753]
[1718590785749,0.14404125,66405.0,66404.0,0.17547753]
[1718590786395,0.59581425,66405.0,66404.0,0.02338974]
[1718590786575,0.60581425,66405.0,66404.0,0.00038974]
[1718590787024,0.13804125,66402.0,66401.0,0.02385]
[1718590787211,0.13804125,66402.0,66401.0,0.17593779]
[1718590787478,0.13804125,66402.0,66401.0,0.17632755]
[1718590788189,0.28863825,66402.0,66401.0,0.02423976]
[1718590788400,0.29063825,66402.0,66401.0,0.02423976]
[1718590788615,0.14004125,66402.0,66401.0,0.02423976]
[1718590788835,0.14104125,66402.0,66401.0,0.02423976]
[1718590789479,0.59283325,66402.0,66401.0,0.02423976]
[1718590789696,0.60283325,66402.0,66401.0,0.02423976]
[1718590790699,0.59283325,66402.0,66401.0,0.02423976]
[1718590792260,0.60283325,66402.0,66401.0,0.02423976]
[1718590793462,0.59283325,66402.0,66401.0,0.02423976]
[1718590795406,0.89402825,66402.0,66401.0,0.02423976]
[1718590795579,0.90402825,66402.0,66401.0,0.02423976]
[1718590796219,0.60283325,66402.0,66401.0,0.02423976]
[1718590796643,0.59283325,66402.0,66401.0,0.02423976]
[1718590796847,0.60283325,66402.0,66401.0,0.02423976]
[1718590797433,0.90402825,66402.0,66401.0,0.02423976]
[1718590797635,0.60283325,66402.0,66401.0,0.02423976]
[1718590797834,0.90402825,66402.0,66401.0,0.02423976]
[1718590800899,0.95432825,66402.0,66401.0,0.00123976]
[1718590801560,1.55671825,66402.0,66401.0,0.00123976]
[1718590801824,1.70131825,66402.0,66401.0,0.00123976]
[1718590802061,1.50012325,66402.0,66401.0,0.00123976]
[1718590802270,1.40012325,66402.0,66401.0,0.00123976]
[1718590802466,1.55221104,66402.0,66401.0,0.00123976]
[1718590802685,1.65121104,66402.0,66401.0,0.00123976]